Cogmind - Beta 13 @@@ ROGUE MODE // 2024.04.02 @ 18:57:01 Player: gabr Result: Destroyed by H-61 Shepherd with Heavy Assault Cannon Performance ------------- Evolutions (2) 1000 Regions Visited (6) 1200 Robots Destroyed (57) 285 Value Destroyed (1171) 1171 Prototype IDs (26) 520 Alien Tech Used (0) 0 Bonus (322) 322 TOTAL SCORE: 4498 Bonus ------- High Alert Combat Kills 22 Aligned with FarCom 300 Cogmind --------- Core Integrity 0/550 Matter 300/300 Energy 100/100 System Corruption 0% Temperature Cool (0) Movement Flying (40) Location -8/Materials Parts ------- > --- POWER (1) -------- (None) > --- PROPULSION (6) --- Flight Unit Flight Unit > --- UTILITY (2) ------ Improved Heat Sink > --- WEAPON (2) ------- Heavy Mace > --- INVENTORY (5) ---- Light Nuclear Core Medium Laser Medium Laser Improved Grenade Launcher Peak State ------------ > --- POWER ------------ Ion Engine > --- PROPULSION ------- Hover Unit Hover Unit Hover Unit Improved Hover Unit > --- UTILITY ---------- Medium Storage Unit Experimental Sensor Array > --- WEAPON ----------- Improved EM Shotgun Longsword +1 > --- INVENTORY -------- Ion Engine Light Ion Engine Compact Battery Weapon Shielding Improved EM Shotgun Improved EM Shotgun Medium Laser Medium Laser Improved Grenade Launcher Flail [Rating: 28] Favorites ----------- Power Ion Engine Engine Ion Engine Power Core Nuclear Core Propulsion Aluminum Leg Leg Aluminum Leg Hover Unit Hover Unit Flight Unit Flight Unit Utility Medium Storage Unit Device Improved Heat Sink Storage Medium Storage Unit Protection Light Armor Plating Weapon Longsword +1 Energy Gun Improved EM Shotgun Ballistic Gun Shotgun Ballistic Cannon Flak Cannon Impact Weapon Heavy Mace Slashing Weapon Longsword +1 Build | -11 -10 -9 -9 -9 -8 -8 ------- Run | Yrd Mat Mat Min Exi Min Mat Slots Evolved 4 | . . 2 . . . 2 Power . | . . . . . . . Propulsion 4 | . . 2 . . . 2 Utility . | . . . . . . . Weapon . | . . . . . . . Parts Attached 64 | 6 9 15 4 2 10 18 Power 12 | 1 3 1 1 . 3 3 Engine 10 | 1 3 1 1 . 3 1 Core 2 | . . . . . . 2 Reactor . | . . . . . . . Propulsion 20 | 2 2 4 . . 6 6 Treads . | . . . . . . . Leg 8 | 2 . . . . 6 . Wheel . | . . . . . . . Hover 6 | . 2 4 . . . . Flight 6 | . . . . . . 6 Utility 11 | 1 3 2 3 1 . 1 Device 5 | . 1 . 3 . . 1 Storage 4 | 1 1 1 . 1 . . Processor . | . . . . . . . Hackware . | . . . . . . . Protection 2 | . 1 1 . . . . Artifact . | . . . . . . . Weapon 21 | 2 1 8 . 1 1 8 Energy Gun 6 | 1 1 3 . . . 1 Energy Cannon . | . . . . . . . Ballistic Gun 6 | 1 . 3 . . 1 1 Ballistic Cannon 2 | . . . . . . 2 Launcher . | . . . . . . . Special Weapon . | . . . . . . . Impact Weapon 3 | . . 2 . . . 1 Slashing Weapon 4 | . . . . 1 . 3 Piercing Weapon . | . . . . . . . Special Melee Weapon . | . . . . . . . Unidentified Prototypes 3 | . . 2 1 . . . Corrupted Parts 1 | . . . . . 1 . System Corruption 4 | . . . . . 4 . Parts Lost 21 | . 4 . 1 . 6 10 Power 4 | . 1 . 1 . . 2 Propulsion 12 | . 2 . . . 5 5 Utility . | . . . . . . . Weapon 5 | . 1 . . . 1 3 Highest Loss Streak 6 | . 4 . 1 . 3 6 To Critical Strikes . | . . . . . . . Average Slot Usage (%) 85 | . 85 84 97 100 94 63 Engine 8 | . 12 9 9 11 11 2 Core 1 | . . . . . . 4 Leg 16 | . 16 . . . 36 8 Hover 13 | . 8 32 44 44 3 . Flight 3 | . . . . . . 16 Device 1 | . 1 . 4 7 . 3 Storage 15 | . 14 11 18 14 22 9 Protection 2 | . 5 10 . . . . Energy Gun 10 | . 24 3 22 15 9 . Ballistic Gun 3 | . 1 15 . . . 3 Slashing Weapon 6 | . . . . 6 11 9 Naked Turns . | . . . . . . . Heaviest Build 28 | 12 22 24 22 23 27 28 Greatest Support 55 | 20 20 25 25 25 55 25 Greatest Overweight (x) 4 | . 4 1 . . 1 2 Average Overweight (x) . | . . . . . . . Largest Inventory Capacity 10 | 8 10 10 10 10 10 10 Average Capacity 9 | 7 9 10 10 10 10 7 Most Carried 10 | 3 10 10 10 10 10 10 Average Carried 8 | 1 7 9 9 10 10 7 Final Capacity 10 | 8 10 10 10 10 10 5 Final Carried 10 | 3 10 10 10 10 10 4 Class Distribution -------------------- 70% | Mutant 22% | Scavenger-Mutant 7% | Scavenger-Sprinter Dominant Class ---------------- Mutant | -10/Materials Mutant | -9/Materials Mutant | -9/Mines Mutant | -9/Exiles Scavenger-Mutant | -8/Mines Mutant | -8/Materials Resources | -11 -10 -9 -9 -9 -8 -8 ----------- Run | Yrd Mat Mat Min Exi Min Mat Matter Collected 948 | 278 96 190 97 . 132 155 Remotely . | . . . . . . . Salvage Created 1835 | 85 268 309 90 . 553 530 Parts 92 | 2 13 16 11 . 26 24 Haulers Intercepted 2 | . 1 1 . . . . Recyclers Shooed 1 | . . . . . 1 . Parts Field Recycled . | . . . . . . . Retrieved Matter . | . . . . . . . Parts Self-Destructed . | . . . . . . . Prevented . | . . . . . . . Kills | -11 -10 -9 -9 -9 -8 -8 ------- Run | Yrd Mat Mat Min Exi Min Mat Combat Hostiles Destroyed 46 | . 7 6 6 . 14 13 Melee 26 | . . . . . 14 12 Guns 17 | . 7 6 4 . . . AOE 2 | . . . 2 . . . Classes Destroyed 8 | 1 4 1 . . 1 1 Worker 3 | . 1 1 . . 1 . Builder 1 | . . . . . . 1 Hauler 2 | . 1 1 . . . . Recycler 5 | 1 . 1 . . 2 1 Swarmer 27 | . 3 3 6 . 9 6 Grunt 13 | . 4 2 . . 3 4 Sentry 4 | . . 1 . . . 3 Hunter 2 | . . . . . 2 . Best Kill Streak 9 | 1 3 4 6 . 4 9 Combat Bots Only 8 | . 3 3 6 . 4 8 Max Kills in Single Turn 2 | 1 1 2 2 . 2 1 Gunslinging . | . . . . . . . Exploded 2 | . . . 2 . . . Melee 1 | . . . . . 1 1 Uniques/NPCs Destroyed . | . . . . . . . Combat | -11 -10 -9 -9 -9 -8 -8 -------- Run | Yrd Mat Mat Min Exi Min Mat Hostile Shots Fired 277 | . 40 43 14 . 82 98 Missed 76 | . 9 9 7 . 22 29 Damage Taken 2743 | . 490 370 74 . 629 1180 Core 847 | . 103 29 7 . 136 572 Absorbed by Shields . | . . . . . . . Redirected to Shielding 23 | . 23 . . . . . Core Remaining (%) 71 | 100 58 . . . 57 . Volleys Fired 62 | 6 31 13 7 . 5 . Largest 2 | 2 2 2 2 . 1 . Hottest 100 | 70 100 46 90 . 45 . Shots Fired 118 | 12 60 26 14 . 6 . Gun 118 | 12 60 26 14 . 6 . Cannon . | . . . . . . . Launcher . | . . . . . . . Special . | . . . . . . . Kinetic 34 | 6 2 26 . . . . Thermal 64 | 6 58 . . . . . Explosive . | . . . . . . . Electromagnetic 20 | . . . 14 . 6 . Robot Hit Streak 7 | 3 4 7 4 . 2 . Robot Miss Streak 5 | 2 5 4 5 . 2 . Penetration Max . | . . . . . . . Secondary Targets 5 | . 2 2 1 . . . Max Gunslinging Chain 1 | . 1 1 1 . . . Shots Hit Robots 140 | 6 30 19 6 . 40 39 Core Hits 65 | 2 14 14 7 . 16 12 Critical Kills . | . . . . . . . Critical Parts Destroyed . | . . . . . . . Critical Strikes 6 | . 1 . . . 4 1 Burn 1 | . 1 . . . . . Sever 5 | . . . . . 4 1 Melee Attacks 85 | . . . . . 42 43 Impact 11 | . . . . . . 11 Slashing 74 | . . . . . 42 32 Piercing . | . . . . . . . Sneak Attacks 8 | . . . . . 4 4 Combat Hostiles 2 | . . . . . . 2 Follow-up Attacks 1 | . . . . . . 1 Damage Inflicted 4598 | 77 507 300 137 . 1865 1712 Guns 910 | 77 393 300 74 . 66 . Cannons . | . . . . . . . Explosions 177 | . 114 . 63 . . . Melee 3500 | . . . . . 1799 1701 Ramming 11 | . . . . . . 11 Kinetic 325 | 25 . 300 . . . . Thermal 508 | 52 393 . 63 . . . Explosive 114 | . 114 . . . . . Electromagnetic 140 | . . . 74 . 66 . Impact 428 | . . . . . . 428 Slashing 3072 | . . . . . 1799 1273 Piercing . | . . . . . . . Highest Corruption 7 | . . 3 3 3 7 . Average Corruption 3 | . . 3 3 3 4 . Corruption Purged . | . . . . . . . Corruption Blocked . | . . . . . . . Effects 26 | . . 4 1 6 15 . Message Errors 8 | . . 3 . 1 4 . Matter Fused 5 | . . . . 1 4 . Heat Flow Errors 4 | . . . . 3 1 . Energy Discharges 4 | . . . . 1 3 . Parts Rejected 1 | . . . . . 1 . Data Loss (minor) 2 | . . 1 1 . . . Data Loss (major) 1 | . . . . . 1 . Misfires 1 | . . . . . 1 . Overload Shots . | . . . . . . . Overflow Damage 588 | . 70 . . . 213 305 Projectiles . | . . . . . . . Explosions 70 | . 70 . . . . . Melee 518 | . . . . . 213 305 Knockbacks 1 | . . . . . . 1 Impact 1 | . . . . . . 1 Kinetic . | . . . . . . . Secondary . | . . . . . . . Self-Inflicted Damage 208 | . 181 . 22 . . 5 Shots 3 | . 2 . 1 . . . Rammed 3 | . . . . . . 3 Targets Rammed 3 | . . . . . . 3 Kicked . | . . . . . . . Crushed . | . . . . . . . Highest Temperature 359 | 18 359 30 86 285 279 5 Average Temperature 102 | 9 143 10 42 124 85 5 Received Heat Transfer 543 | . 102 117 . . 72 252 Effects 3 | . 3 . . . . . Shutdowns 1 | . 1 . . . . . Interference 2 | . 2 . . . . . Siege Activations . | . . . . . . . Robots Corrupted . | . . . . . . . Combat Hostiles . | . . . . . . . Parts Fried 2 | . . . . . . 2 Impact Corruptions 5 | . . . . . . 5 Robots Melted . | . . . . . . . Combat Hostiles . | . . . . . . . Parts Melted . | . . . . . . . Heat Transferred 1469 | 148 1221 . 100 . . . Parts Sabotaged . | . . . . . . . Parts Stolen . | . . . . . . . Parts Stripped . | . . . . . . . Power Chain Reactions 1 | . . . 1 . . . Alert | -11 -10 -9 -9 -9 -8 -8 ------- Run | Yrd Mat Mat Min Exi Min Mat Peak Influence 450 | 5 243 289 275 . 325 450 Initial 112 | . 3 102 112 . . 75 Average 167 | . 122 165 217 . 188 211 Maximum Alert Level 2 | . 1 1 1 . 1 2 Low Security (%) 65 | 100 85 70 39 . 55 56 Level 1 31 | . 14 29 60 . 44 30 Level 2 2 | . . . . . . 12 Level 3 . | . . . . . . . Level 4 . | . . . . . . . Level 5 . | . . . . . . . High Security . | . . . . . . . Max Security . | . . . . . . . Squads Dispatched 5 | . 1 . . . . 4 Investigation 1 | . . . . . . 1 Extermination . | . . . . . . . Reinforcement 4 | . 1 . . . . 3 Assault . | . . . . . . . Garrison . | . . . . . . . Intercept . | . . . . . . . Searches Triggered . | . . . . . . . Construction Impeded . | . . . . . . . Haulers Reinforced . | . . . . . . . Active Scanning Responses . | . . . . . . . Cargo Convoy Interrupts . | . . . . . . . Stealth | -11 -10 -9 -9 -9 -8 -8 --------- Run | Yrd Mat Mat Min Exi Min Mat Distress Signals 3 | . . . . . . 3 Communications Jammed . | . . . . . . . Distress Signals . | . . . . . . . Times Spotted 64 | . 8 7 7 . 18 24 Peak Tracking Total 9 | . 3 5 3 . 4 9 Tactical Retreats 6 | . . . 1 . 4 1 Traps | -11 -10 -9 -9 -9 -8 -8 ------- Run | Yrd Mat Mat Min Exi Min Mat Traps Triggered 2 | . . 1 . . . 1 Indirectly . | . . . . . . . Trap Hack Attempts . | . . . . . . . Triggered . | . . . . . . . Disarmed . | . . . . . . . Reprogrammed . | . . . . . . . Reused . | . . . . . . . Traps Extracted . | . . . . . . . Installed . | . . . . . . . Triggered . | . . . . . . . Machines | -11 -10 -9 -9 -9 -8 -8 ---------- Run | Yrd Mat Mat Min Exi Min Mat Machines Disabled 2 | . 2 . . . . . Max in Single Turn 2 | . 2 . . . . . Machines Repaired . | . . . . . . . Machines Dismantled . | . . . . . . . Machines Sabotaged . | . . . . . . . Overloaded Fab Kills . | . . . . . . . Hacking | -11 -10 -9 -9 -9 -8 -8 --------- Run | Yrd Mat Mat Min Exi Min Mat Machines Accessed 4 | . 2 . . 1 1 . Terminals 3 | . 2 . . . 1 . Fabricators . | . . . . . . . Repair Stations . | . . . . . . . Recycling Units . | . . . . . . . Scanalyzers . | . . . . . . . Garrison Access . | . . . . . . . Total Hacks 6 | . 4 . . 1 1 . Successful 3 | . 1 . . 1 1 . Failed 3 | . 3 . . . . . Catastrophic . | . . . . . . . Database Lockouts . | . . . . . . . Manual 2 | . . . . 1 1 . Terminals 5 | . 4 . . . 1 . Fabricators . | . . . . . . . Repair Stations . | . . . . . . . Recycling Units . | . . . . . . . Scanalyzers . | . . . . . . . Garrison Access . | . . . . . . . Terminal Hacks 3 | . 1 . . 1 1 . Level Access Points 1 | . . . . . 1 . Branch Access Points 1 | . 1 . . . . . Derelict Proto ID Bank 1 | . . . . 1 . . Fabricator Hacks . | . . . . . . . Repair Station Hacks . | . . . . . . . Recycling Unit Hacks . | . . . . . . . Scanalyzer . | . . . . . . . Garrison Access Hacks . | . . . . . . . Unauthorized Hacks . | . . . . . . . Terminals . | . . . . . . . Fabricators . | . . . . . . . Repair Stations . | . . . . . . . Recycling Units . | . . . . . . . Scanalyzers . | . . . . . . . Garrison Access . | . . . . . . . Data Cores Recovered . | . . . . . . . Used . | . . . . . . . Hacking Detections 1 | . 1 . . . . . Full Trace Events . | . . . . . . . Feedback Events . | . . . . . . . Feedback Blocked . | . . . . . . . Robot Schematics Acquired . | . . . . . . . Robots Built . | . . . . . . . Authchips . | . . . . . . . Time . | . . . . . . . Total Robot Build Rating . | . . . . . . . Part Schematics Acquired . | . . . . . . . Parts Built . | . . . . . . . Authchips . | . . . . . . . Time . | . . . . . . . Total Part Build Rating . | . . . . . . . Parts Repaired . | . . . . . . . Time . | . . . . . . . Parts Recycled . | . . . . . . . Recycled Matter . | . . . . . . . Retrieved Matter . | . . . . . . . Retrieved Components . | . . . . . . . Parts Scanalyzed . | . . . . . . . Part Schematics Acquired . | . . . . . . . Parts Damaged . | . . . . . . . Bothacking | -11 -10 -9 -9 -9 -8 -8 ------------ Run | Yrd Mat Mat Min Exi Min Mat Used RIF Installer . | . . . . . . . Robots Hacked . | . . . . . . . Non-combat . | . . . . . . . Combat . | . . . . . . . Robot Hacks Applied . | . . . . . . . Relay Couplers Released . | . . . . . . . Fabnet Peak Effective % . | . . . . . . . Robots Rewired . | . . . . . . . Allies Hacked . | . . . . . . . Hacks Repelled . | . . . . . . . Allies | -11 -10 -9 -9 -9 -8 -8 -------- Run | Yrd Mat Mat Min Exi Min Mat Total Allies . | . . . . . . . Largest Group . | . . . . . . . Highest-Rated Group . | . . . . . . . Highest-Rated Ally . | . . . . . . . Total Orders . | . . . . . . . Ally Attacks . | . . . . . . . Total Damage . | . . . . . . . Kills . | . . . . . . . Allies Corrupted . | . . . . . . . Allies Melted . | . . . . . . . Intel | -11 -10 -9 -9 -9 -8 -8 ------- Run | Yrd Mat Mat Min Exi Min Mat Robot Analysis Total . | . . . . . . . Derelict Logs Recovered 1 | . . . 1 . . . Drone Launches . | . . . . . . . Drone Recoveries . | . . . . . . . Exploration | -11 -10 -9 -9 -9 -8 -8 ------------- Run | Yrd Mat Mat Min Exi Min Mat Turns Passed 1938 | 117 329 246 111 155 584 396 Spaces Moved 1507 | 74 157 164 164 239 379 330 Core 19 | 2 17 . . . . . Treads . | . . . . . . . Legs 615 | 72 87 . . . 358 98 Wheels . | . . . . . . . Hover 641 | . 53 164 164 239 21 . Flight 232 | . . . . . . 232 Fastest Speed 25 | 50 116 48 48 48 48 25 Average Speed 90 | 118 135 98 48 48 120 74 Slowest Speed 260 | 120 250 116 48 48 210 260 Overloaded Moves . | . . . . . . . Propulsion Burnouts . | . . . . . . . Robots Hopped . | . . . . . . . Cave-ins Triggered . | . . . . . . . Exploration Rate (%) 34 | 4 26 20 46 61 48 33 Regions Visited 6 Branch Regions 3 Pre-discovered Areas . | . . . . . . . Known Exits Taken 1 | . . . . . 1 . Unknown Exits Taken 5 | 1 1 1 1 1 . . Scrap Searched 2 | . . . 2 . . . Spaces Dug . | . . . . . . . Terrain Destroyed 36 | . 33 . 3 . . . Melee . | . . . . . . . Projectile . | . . . . . . . AOE 36 | . 33 . 3 . . . Terrain Rammed . | . . . . . . . Walls Destroyed . | . . . . . . . Machines Disabled . | . . . . . . . Actions | -11 -10 -9 -9 -9 -8 -8 --------- Run | Yrd Mat Mat Min Exi Min Mat Total 1872 | 88 217 225 181 278 458 425 Wait 93 | . 2 17 4 36 16 18 Move 1501 | 73 156 163 163 238 378 330 Hop . | . . . . . . . Pick Up 18 | 3 7 5 . . 1 2 Fast Attach 50 | 6 6 11 3 2 7 15 Attach 6 | . . 3 1 . . 2 Detach 8 | . 4 2 1 . . 1 Swap 8 | . 3 1 . . 3 1 Drop 39 | . 8 10 2 2 6 11 Fire 62 | 6 31 13 7 . 5 . Melee 84 | . . . . . 42 42 Ram 3 | . . . . . . 3 Kick . | . . . . . . . Crush . | . . . . . . . Escape Stasis . | . . . . . . . Rewire . | . . . . . . . Trap . | . . . . . . . Miscellaneous . | . . . . . . . Route ------- -11/Scrapyard -10/Materials (discovered 2 exits: *Mat / Min) -9/Materials -9/Mines (discovered 2 exits: *Mat / *Exi) -9/Exiles -8/Mines (discovered 2 exits: *Mat x2) -8/Materials History --------- Turn | Location | Event 2 | -11/Scrapyard | Met Revision 17 5 | -11/Scrapyard | Discovered new exit (range 15) 118 | -11/Scrapyard | Entered Materials 369 | -10/Materials | Build established: Mutant 407 | -10/Materials | Discovered new exit (range 7) 429 | -10/Materials | Identified exit to Mines 438 | -10/Materials | Lost 4 parts (1p2n1w) 447 | -10/Materials | Entered another Materials area 447 | -9/Materials | Evolved 2 slots: Propulsion x2 688 | -9/Materials | Discovered new exit (range 12) 693 | -9/Materials | Entered Mines 754 | -9/Mines | Learned Materials terminal intel 763 | -9/Mines | Found a damaged Exp. Sensor Array with a note attached 764 | -9/Mines | Found Prototype Device 764 | -9/Mines | Identified Exp. Sensor Array 787 | -9/Mines | Discovered new exit (range 13) 801 | -9/Mines | Deemed a non-threat by the Exiles lab entrance 802 | -9/Mines | Discovered new exit (range 5) 804 | -9/Mines | Entered Exiles 816 | -9/Exiles | Met 8R-AWN 824 | -9/Exiles | Met EX-HEX 839 | -9/Exiles | Met EX-BIN 845 | -9/Exiles | Aligned with FarCom system 846 | -9/Exiles | Given EX-Vault access code 857 | -9/Exiles | Opened EX-Vault 863 | -9/Exiles | Found Longsword +1 874 | -9/Exiles | Warned to stay clear of 0b10 Research branches 880 | -9/Exiles | Exiles lab attacked by MAIN.C 916 | -9/Exiles | Discovered new exit (range 14) 959 | -9/Exiles | Left Exiles lab with Longsword +1 959 | -9/Exiles | Entered Mines 1366 | -8/Mines | Identified exit to Materials 1406 | -8/Mines | Build established: Scavenger-Mutant 1523 | -8/Mines | Lost 3 parts (2n1w) 1543 | -8/Mines | Entered Materials 1543 | -8/Materials | Evolved 2 slots: Propulsion x2 1544 | -8/Materials | Loaded intel: 12 terminal locations 1810 | -8/Materials | Destroyed 8 combat bots 1918 | -8/Materials | Core integrity fell below 50% 1930 | -8/Materials | Core integrity fell below 20% 1939 | -8/Materials | Destroyed by H-61 Shepherd with Heavy Assault Cannon Last Messages --------------- 01906_ Knocked back. 01908_ H-61 Shepherd calls for reinforcements. 01908_ ALERT: Hostile activity reported, dispatching reinforcements to area. 01908_ Longsword +1 destroyed. 01910_ T-07 Excavator is excavating. 01916_ Knocked back. 01920_ Flight Unit destroyed. 01920_ Knocked back. 01925_ Scythe destroyed. 01925_ Critical hit (Blast). 01925_ Knocked back. 01927_ Slammed into H-61 Shepherd. 01927_ Flight Unit broken. 01927_ Destabilizing: Short circuit. 01928_ Slammed into H-61 Shepherd. 01929_ Penetrated by Slug. 01929_ Knocked back. 01930_ Slammed into H-61 Shepherd. 01937_ U-05 Engineer builds a Wall. Map ----- +----------------------------------------------------+ | ?? ?????????????????????# #????????????????????? | | ?? ???????????????###???# #????????????????????? | | ?? ??????????????? ??# #????????????????????? | | ?? ???????????????""""?## ##???????????????????? | | ?? ?????????????????"" # #???????????????????? | | ?? ??????????????????" # #???????????????????? | | ?????????????????? / T #?????????"?????????? | | ??????????????# """"" # #?????????"?????????? | | ?????????????????""""" # #?????????"?????????? | | ??????????????????""""?## ##?????????T?????????? | | ?????????????????? ??# #??????????"?????????? | | ???????????????????##???# #??????????"?????????? | | ????????????????????????# #??????????"????"T"??? | | ????????????????????????# #???#?##?????????????? | | ????????????????????????# #?? ??????????????? | | ????????????????????????# #?? ??????????????? | | ????????????????????????#k #? "???????????????? | | ????????????????????????# #? "????????????????? | | ????????????????????????# # ?????????????????? | | ????????????????????????# + ??????????????????? | | ????????????????????????# ; ???????????????????? | | ???????????????????????## #????????????????????? | | ???????????????????????## % ##???????????????????? | | ?????????????###########u %#########???????????? | | ????????? gg g %% ???????? | | ????????s s %@ g ???????? | | ????????? r % ???????? | | ??????????##########+### H ###+###### ##???????? | | ???????????????????????#######???????????????????? | | ?????????????????????????????????????????????????? | | ?????????????????????????????????????????????????? | | ?????????????????????????????????????????????????? | | ?????????????????????????????????????????????????? | | ?????????????????????????????????????????????????? | | ?????????????????????????????????????????????????? | | ?????????????????????????????????????????????????? | | ???????????????Y?????????????????????????????????? | | ?????????????????????????????????????????????????? | | ?????????????????????????????????????????????????? | | ?????????????????????????????????????????????????? | | ???????T?????????????????????????????????????????? | | ?????????????????????????????????????????????????? | | ?????????????????????????????????????????????????? | | ?????????????????????????????????????????????????? | | ?????????????????????????????????????????????????? | | ?????????????????????????????????????????????????? | | ?????????????????????????????????????????????????? | | ?????????????????????????????????????????????????? | | ?????????????????????????????????????????????????? | | ?????????????????????????????????????????????????? | +----------------------------------------------------+ Best States ------------- Heat Dissipation 45 Energy Generation 18 Energy Capacity 450 Matter Stores 300 Matter Capacity 300 Sight Range 16 Robot Scan Range 20 Terrain Scan Density 10 Armor Coverage 150 Weapon Shielding 33 Evasion (%) 65 Item Schematics ----------------- None Robot Schematics ------------------ None Fabricated ------------ Nothing Alien Tech Used ----------------- None Achievements -------------- None Challenges ------------ None Game ------ Seed FluxLinkedBarrier Manual? 0 Play Time 00:19:14 Cumulative 38.5 hours Start 2024.04.02 @ 18:41:10 End 2024.04.02 @ 18:57:01 Sessions 1 Manual Loads 0 Difficulty Rogue Special Mode None Game No. 87 Rogue 87 Adventurer 0 Explorer 0 Win Type - Total 0 Types 0/0/0/0/0/0/0/0/0 Lore% 20 Gallery% 31 Achievement% 25 Wizard Run 0 Options --------- Layout 0 ASCII 0 Keyboard 1 Movement Numpad Keybinds 0 Fullscreen 1 Font 18/X11 Map View 76x50 Zoom Use 0% Tactical HUD 1 Map Filters NONE Filters NONE Steam 1 RUN: aa465994-09df-4936-8fa3-0e80f01ed406